{"text_format":"1","workbook":"xlsx","n_sheets":12,"sheets":["1. Forside","2. Samlet prisloft","3. Driftsomkostninger","4. Historiske investeringer","5. Gennemførte investeringer","6. Korrektion investeringer","7. Planlagte investeringer","8. 1-1 omkostninger","9. Miljø- og servicemål","10. Nettofinansielle poster","11. Over- eller underdækning","12. Kontrol med indtægtsrammen"],"not_rendered":{"charts":0,"images":0,"macros":1,"external_links":0,"defined_names":0,"comments":0,"pivot_tables":0},"unopened":[],"bounds":{"document_bytes":16777216,"sheet_cells":100000,"rows_first":2000,"rows_last":500,"rows_between":2000,"halvings":0,"cell_chars":16384,"cell_head_chars":4096},"cells_cut":0,"cells_raw":0,"read":"whole","date_system":"1900"}

{"sheet":"1. Forside","index":0,"n_rows":26,"n_cols":4,"rows_kept":26,"cut":false,"hidden":false,"merged":[[20,3,20,5],[19,3,19,5],[18,3,18,5],[7,3,7,5],[12,3,12,5],[15,3,15,5],[16,3,16,5],[17,3,17,5],[25,3,25,5],[24,3,24,5],[23,3,23,5],[22,3,22,5],[21,3,21,5]]}
["Lyngby-Taarbæk Vand A/S"]
[]
[]
[]
[]
[]
[]
[null,null,null,"Bilag A"]
[]
[]
[]
[]
[null,null,null,"Indholdsfortegnelse"]
[]
[]
[null,null,"Fane nr. 2","Samlet prisloft "]
[null,null,"Fane nr. 3","Driftsomkostninger"]
[null,null,"Fane nr. 4","Historiske investeringer "]
[null,null,"Fane nr. 5","Gennemførte investeringer"]
[null,null,"Fane nr. 6","Korrektion investeringer"]
[null,null,"Fane nr. 7","Planlagte investeringer"]
[null,null,"Fane nr. 8","1:1 omkostninger"]
[null,null,"Fane nr. 9","Miljø- og servicemål"]
[null,null,"Fane nr. 10","Nettofinansielle poster"]
[null,null,"Fane nr. 11","Over- eller underdækning"]
[null,null,"Fane nr. 12","Kontrol med indtægtsrammen og oversigt over ekstraordinære effektiviseringsgevinster"]

{"sheet":"2. Samlet prisloft","index":1,"n_rows":38,"n_cols":6,"rows_kept":38,"cut":false,"hidden":false,"merged":[[3,1,3,5]]}
[{"$f":"'1. Forside'!A1","v":"Lyngby-Taarbæk Vand A/S"}]
[]
[]
[null,"Fane 2. Samlet prisloft for 2015"]
[]
[null,"Driftsomkostninger"]
[null,"Driftsomkostninger i prisloftet for 2014",{"$f":"'3. Driftsomkostninger'!C20","v":18121673.305},"kr."]
[null,"Bortfald af væsentlige omkostninger",{"$f":"-'3. Driftsomkostninger'!C16","v":0},"kr."]
[null,"Korrektion for prisudviklingen 2014-2015",{"$f":"'3. Driftsomkostninger'!C22","v":14497.338644000001},"kr."]
[null,"Forhøjelse til effektivt niveau iht. benchmarkingen",{"$f":"'3. Driftsomkostninger'!C28","v":0},"kr."]
[null,"Korrektion for generelt effektiviseringskrav",{"$f":"-'3. Driftsomkostninger'!C34","v":-79735.362542000003},"kr."]
[null,"Korrektion for individuelt effektiviseringskrav",{"$f":"-'3. Driftsomkostninger'!C43","v":-906083.66525000008},"kr."]
[null,"Driftsomkostninger i alt",{"$f":"SUM(C7:C12)","v":17150351.615852002},"kr.",{"$f":"C13","v":17150351.615852002}," kr."]
[null,"Investeringer"]
[null,"Tillæg for historiske investeringer",{"$f":"'4. Historiske investeringer'!C9","v":5085051.7452388052},"kr."]
[null,"Tillæg for gennemførte investeringer i 2011-2013",{"$f":"'5. Gennemførte investeringer'!F80","v":2804017.995000001},"kr."]
[null,"Korrektion af tillæg for planlagte investeringer vedrørende 2013  ",{"$f":"'6. Korrektion investeringer'!C10","v":-231524.866666666},"kr."]
[null,"Tillæg for planlagte investeringer i 2014 og 2015",{"$f":"'7. Planlagte investeringer'!F61","v":1871862.5},"kr."]
[null,"Investeringstillæg i alt",{"$f":"SUM(C15:C18)","v":9529407.3735721409},"kr.",{"$f":"C19","v":9529407.3735721409}," kr."]
[null,"Øvrige omkostninger mv."]
[null,"Tillæg for 1:1 omkostninger i 2015",{"$f":"'8. 1-1 omkostninger'!C10","v":10413000},"kr."]
[null,"Tillæg for afgift for ledningsført vand i 2015",{"$f":"'8. 1-1 omkostninger'!C15","v":18190686},"kr."]
[null,"Tillæg vedr. revisorerklæringer og DANVA/FVD-kontingent",{"$f":"'8. 1-1 omkostninger'!C21","v":139000},"kr."]
[null,"Korrektion ift. faktiske 1:1 omkostninger i 2013",{"$f":"'8. 1-1 omkostninger'!C27","v":1646738},"kr."]
[null,"Tillæg for driftsomkostninger til miljø- og servicemål i 2015",{"$f":"'9. Miljø- og servicemål'!C10","v":550000},"kr."]
[null,"Korrektion ift. faktiske driftsomkostninger til miljø- og servicemål i 2013",{"$f":"'9. Miljø- og servicemål'!C17","v":0},"kr."]
[null,"Tillæg/fradrag for nettofinansielle poster i 2015",{"$f":"'10. Nettofinansielle poster'!C9","v":3397724},"kr."]
[null,"Korrektion ift. faktiske nettofinansielle poster i 2013",{"$f":"'10. Nettofinansielle poster'!C16","v":1163877},"kr."]
[null,"Øvrige omkostninger mv. i alt",{"$f":"SUM(C21:C28)","v":35501025},"kr.",{"$f":"C29","v":35501025}," kr."]
[null,"Historisk over- eller underdækning"]
[null,"Tillæg/fradrag for over- eller underdækning til og med 2010",{"$f":"'11. Over- eller underdækning'!C11","v":-188237.24867724869},"kr.",{"$f":"C31","v":-188237.24867724869}," kr."]
[null,"Korrektion i forhold til tidligere indtægtsramme "]
[null,"Korrektion for overholdelse af indtægtsramme i prisloft 2013",{"$f":"'12. Kontrol med indtægtsrammen'!E27","v":-331286.68838559836},"kr.",{"$f":"C33","v":-331286.68838559836}," kr."]
[null,"Samlet prisloft"]
[null,"Indtægtsramme i 2015 ",null,null,{"$f":"SUM(E13:E33)","v":61661260.052361295}," kr."]
[null,"Debiteret vandmængde i 2013",null,null,2785710," m3"]
[null,"Prisloft 2015",null,null,{"$f":"E35/E36","v":22.13484535445588}," kr./m3"]
[null,"Prisloft 2015 ekskl. afgift for ledningsført vand ",null,null,{"$f":"(E35-C22)/E36","v":15.604845462148356}," kr./m3"]

{"sheet":"3. Driftsomkostninger","index":2,"n_rows":43,"n_cols":4,"rows_kept":43,"cut":false,"hidden":false,"merged":[[3,1,3,3]]}
[{"$f":"'1. Forside'!A1","v":"Lyngby-Taarbæk Vand A/S"}]
[]
[]
[null,"Fane 3. Driftsomkostninger "]
[]
[null,"Driftsomkostningerne i prisloftet for 2014"]
[null,"Korrigerede driftsomkostninger i prisloftet for 2013 (DOiPL 2013)",18581687,"kr."]
[null,"Prisfremskrivning 1,5 pct.",{"$f":"0.015*SUM(C7:C7)","v":278725.30499999999},"kr."]
[null,"Generelt effektiviseringskrav (0 pct.)",0,"kr."]
[null,"Individuelt effektiviseringskrav ",-738739,"kr."]
[null,"Driftsomkostningerne i prisloftet for 2014 (DOiPL 2014)",{"$f":"SUM(C7:C10)","v":18121673.305},"kr."]
[]
[]
[null,"Korrektion for forventet bortfald af væsentlige omkostninger"]
[null,"Selskabets indberettede bortfald af væsentlige omkostninger inden 2015",0,"kr."]
[null,"Korrektion for forventet bortfald ",{"$f":"SUM(C15:C15)","v":0},"kr."]
[]
[]
[null,"Korrektion for prisudviklingen fra 2014-2015"]
[null,"Driftsomkostningerne i prisloftet for 2014",{"$f":"C11-C16","v":18121673.305},"kr."]
[null,"Prisudvikling 2014 - 2015 ",0.08,"pct."]
[null,"Korrektion for prisudvikling",{"$f":"C20*(C21/100)","v":14497.338644000001},"kr."]
[]
[]
[null,"Eventuel forhøjelse til effektivt niveau iht. benchmarkingen"]
[null,"Selskabets effektive driftsomkostninger iht. benchmarkingen",11559815,"kr."]
[null,"Selskabets pristalskorrigerede driftsomkostninger i 2015-niveau",{"$f":"C20+C22","v":18136170.643644001},"kr."]
[null,"Eventuel forhøjelse til effektivt niveau",{"$f":"IF(C27>C26,0,C26-C27)","v":0},"kr."]
[]
[]
[null,"Korrektion for generelt effektiviseringskrav"]
[null,"Driftsomkostningerne i prisloftet for 2014",{"$f":"C20","v":18121673.305},"kr. "]
[null,"Generelt effektiviseringskrav ",0.44,"pct."]
[null,"Endeligt generelt effektiviseringskrav",{"$f":"C32*(C33/100)","v":79735.362542000003},"kr. "]
[]
[]
[null,"Korrektion for individuelt effektiviseringskrav"]
[null,"Rå effektiviseringspotentiale",6561858,"kr."]
[null,"Effektiviseringspotentiale efter eventuel korrektion for særlige forhold",6561858,"kr."]
[null,"Effektiviseringspotentiale efter forsigtighedshensyn",3729440,"kr."]
[null,"Effektiviseringspotentiale efter eventuel korrektion for sammensætning af signifikante costdrivere",3729440,"kr. "]
[null,"Umiddelbart effektiviseringskrav",{"$f":"C41/4","v":932360},"kr."]
[null,"Endeligt individuelt effektiviseringskrav",{"$f":"IF(C42>0.05*C20,0.05*C20,IF(C42<0.01*C20,0,C42))","v":906083.66525000008},"kr. "]

{"sheet":"4. Historiske investeringer","index":3,"n_rows":9,"n_cols":4,"rows_kept":9,"cut":false,"hidden":false,"merged":[[3,1,3,2]]}
[{"$f":"'3. Driftsomkostninger'!A1","v":"Lyngby-Taarbæk Vand A/S"}]
[]
[]
[null,"Fane 4. Historiske investeringer "]
[]
[null,"Tillæg for historiske investeringer "]
[null,"Værdi af selskabets materielle anlægsaktiver pr. 1. januar 2010",193217002.25236338,"kr."]
[null,"Den årlige standardafskrivning på de materielle anlægsaktiver iht. POLKA",5085051.7452388052,"kr."]
[null,"Tillæg i alt i 2015",{"$f":"C8","v":5085051.7452388052},"kr."]

{"sheet":"5. Gennemførte investeringer","index":4,"n_rows":80,"n_cols":7,"rows_kept":80,"cut":false,"hidden":false,"merged":[[3,1,3,5],[6,5,6,6]]}
[{"$f":"'4. Historiske investeringer'!A1","v":"Lyngby-Taarbæk Vand A/S"}]
[]
[]
[null,"Fane 5. Gennemførte investeringer i 2010 - 2013 "]
[]
[null,"Tillæg for gennemførte investeringer i 2013"]
[null," Beskrivelse af investeringen   ","Årstal ","Std. levetid (år)   "," Anskaffelses-pris (kr.)","Afskrivning "]
[null,"Ø110 mm < Ledningsnet = Ø 250 mm",2013,75,3943117,{"$f":"E8/D8","v":52574.893333333333},"kr."]
[null,"Ø 50mm < Ledningsnet = Ø110 mm",2013,75,438124,5841.6533333333336,"kr."]
[null,"Stik på ledningsnet, Konstruktioner",2013,75,181169,2415.5866666666666,"kr."]
[null,"Stik på ledningsnet, Mek./EL",2013,75,181169,2415.5866666666666,"kr."]
[null,"Ø110 mm < Ledningsnet = Ø 250 mm",2013,75,1163476,15513.013333333334,"kr."]
[null,"Ø 50mm < Ledningsnet = Ø110 mm",2013,75,4653903,{"$f":"E13/D13","v":62052.04},"kr."]
[null,"Ø 250 mm < Ledningsnet = Ø 500mm",2013,75,2514367,33524.893333333333,"kr."]
[null,"Ø 50mm < Ledningsnet = Ø110 mm",2013,75,182857,2438.0933333333332,"kr."]
[null,"Ø110 mm < Ledningsnet = Ø 250 mm",2013,75,145195,1935.9333333333334,"kr."]
[null,"Ø 50mm < Ledningsnet = Ø110 mm",2013,75,416530,5553.7333333333336,"kr."]
[null,"Ø 50mm < Ledningsnet = Ø110 mm",2013,75,180083,2401.1066666666666,"kr."]
[null,"Afregningsmålere, mekaniske",2013,8,2387800,298475,"kr."]
[null,"Ø 50mm < Ledningsnet = Ø110 mm",2013,75,211821,2824.28,"kr."]
[null,"Ø 50mm < Ledningsnet = Ø110 mm",2013,75,151865,2024.8666666666666,"kr."]
[null,"Ø 50mm < Ledningsnet = Ø110 mm",2013,75,108467,1446.2266666666667,"kr."]
[null,"Ø 50mm < Ledningsnet = Ø110 mm",2013,75,77956,1039.4133333333334,"kr."]
[null,"Ø 50mm < Ledningsnet = Ø110 mm",2013,75,112814,1504.1866666666667,"kr."]
[null,"Ø 50mm < Ledningsnet = Ø110 mm",2013,75,134655,1795.4,"kr."]
[null,"Ø 50mm < Ledningsnet = Ø110 mm",2013,75,198787,2650.4933333333333,"kr."]
[null,"Ø 50mm < Ledningsnet = Ø110 mm",2013,75,91079,1214.3866666666668,"kr."]
[null,"Ø 50mm < Ledningsnet = Ø110 mm",2013,75,69979,933.05333333333328,"kr."]
[null,"Ø 50mm < Ledningsnet = Ø110 mm",2013,75,145753,1943.3733333333332,"kr."]
[null,"Ø 50mm < Ledningsnet = Ø110 mm",2013,75,119121,1588.28,"kr."]
[null,"Ø 50mm < Ledningsnet = Ø110 mm",2013,75,122705,1636.0666666666666,"kr."]
[null,"SRO-brønd/kvarterbrønd/sektionsbrønd, Mek./EL",2013,15,2140,142.66666666666666,"kr."]
[null,"SRO-brønd/kvarterbrønd/sektionsbrønd, Mek./EL",2013,15,3745,249.66666666666666,"kr."]
[null,"Ø 50mm < Ledningsnet = Ø110 mm",2013,75,17098,227.97333333333333,"kr."]
[null,"Ø 50mm < Ledningsnet = Ø110 mm",2013,75,151056,2014.08,"kr."]
[null,"Ø 50mm < Ledningsnet = Ø110 mm",2013,75,141942,1892.56,"kr."]
[null,"Ø 50mm < Ledningsnet = Ø110 mm",2013,75,142975,1906.3333333333333,"kr."]
[null,"Ø 50mm < Ledningsnet = Ø110 mm",2013,75,89156,1188.7466666666667,"kr."]
[null,"Ø 50mm < Ledningsnet = Ø110 mm",2013,75,192020,2560.2666666666669,"kr."]
[null,"Ø 50mm < Ledningsnet = Ø110 mm",2013,75,148916,1985.5466666666666,"kr."]
[null,"Ø 50mm < Ledningsnet = Ø110 mm",2013,75,144308,1924.1066666666666,"kr."]
[null,"Ø 50mm < Ledningsnet = Ø110 mm",2013,75,186806,2490.7466666666664,"kr."]
[null,"Ø 50mm < Ledningsnet = Ø110 mm",2013,75,103604,1381.3866666666668,"kr."]
[null,"Ø 50mm < Ledningsnet = Ø110 mm",2013,75,188287,2510.4933333333333,"kr."]
[null,"Ø 50mm < Ledningsnet = Ø110 mm",2013,75,143151,1908.68,"kr."]
[null,"Ø 50mm < Ledningsnet = Ø110 mm",2013,75,14019,186.92,"kr."]
[null,"Ø 50mm < Ledningsnet = Ø110 mm",2013,75,1196,15.946666666666667,"kr."]
[null,"Ø 50mm < Ledningsnet = Ø110 mm",2013,75,29413,392.17333333333335,"kr."]
[null,"Ø 50mm < Ledningsnet = Ø110 mm",2013,75,1834,24.453333333333333,"kr."]
[null,"SRO-brønd/kvarterbrønd/sektionsbrønd, SRO",2013,10,11911,1191.0999999999999,"kr."]
[null,"SRO-brønd/kvarterbrønd/sektionsbrønd, SRO",2013,10,10351,1035.0999999999999,"kr."]
[null,"SRO-brønd/kvarterbrønd/sektionsbrønd, SRO",2013,10,3745,374.5,"kr."]
[null,"SRO-brønd/kvarterbrønd/sektionsbrønd, SRO",2013,10,3248,324.8,"kr."]
[null,"SRO-brønd/kvarterbrønd/sektionsbrønd, SRO",2013,10,27239,2723.9,"kr."]
[null,"Køretøjer, entreprenørmaskiner",2013,5,45427,9085.4,"kr."]
[null,"Hegn",2013,15,22977,1531.8,"kr."]
[null,"Køretøjer, entreprenørmaskiner",2013,5,247030,49406,"kr."]
[null,"Køretøjer, entreprenørmaskiner",2013,5,89000,17800,"kr."]
[null,"SRO-anlæg, vandværk",2013,10,13495,1349.5,"kr."]
[null,"SRO-anlæg, vandværk",2013,10,44424,4442.3999999999996,"kr."]
[null,"SRO-anlæg, vandværk",2013,10,40853,4085.3,"kr."]
[null,"SRO-anlæg, vandværk",2013,10,22789,2278.9,"kr."]
[null,"Sikring, avanceret (hegne, porte og overvågningssystemer), SRO",2013,10,19518,1951.8,"kr."]
[null,"SRO-anlæg, vandværk",2013,10,92600,9260,"kr."]
[null,"Køretøjer, entreprenørmaskiner",2013,5,13349,2669.8,"kr."]
[null,"Køretøjer, entreprenørmaskiner",2013,5,30880,6176,"kr."]
[null,"Skyllevandsbehandling, inkl. UV-filter mv., Mek./EL",2013,25,49093,1963.72,"kr."]
[null,"Elanlæg - vandværk",2013,25,22450,898,"kr."]
[null,"Elanlæg - vandværk",2013,25,30075,1203,"kr."]
[null,"SRO-anlæg, vandværk",2013,10,84728,8472.7999999999993,"kr."]
[null,"Garage og rørlager",2013,75,107376,1431.68,"kr."]
[null,"Etageareal kontor og mandskabsfaciliteter",2013,75,128090,1707.8666666666666,"kr."]
[null,"Pumpestation (inkl. evt. hydrofor)/trykforøger, Mek./EL",2013,25,71916,2876.64,"kr."]
[null,"Pumpestation (inkl. evt. hydrofor)/trykforøger, Konstruktioner",2013,50,71916,1438.32,"kr."]
[null,"Ø 50mm < Ledningsnet = Ø110 mm",2013,75,1069699,14262.653333333334,"kr."]
[null,"Ventiler på Ø 50mm < Ledningsnet = Ø110 mm",2013,75,356566,4754.2133333333331,"kr."]
[null,"Udpumpningsanlæg, rentvandspumper på vandværk",2013,25,209322,8372.8799999999992,"kr."]
[null,"Tillæg for 2013 ",null,null,null,{"$f":"SUM(F8:F77)","v":691812.38000000059},"kr."]
[null,"Tillæg for 2010 - 2012",null,null,null,2112205.6150000002,"kr."]
[null,"Samlet tillæg for gennemførte investeringer",null,null,null,{"$f":"F78+F79","v":2804017.995000001},"kr."]

{"sheet":"6. Korrektion investeringer","index":5,"n_rows":10,"n_cols":4,"rows_kept":10,"cut":false,"hidden":false,"merged":[[3,1,3,3]]}
[{"$f":"'5. Gennemførte investeringer'!A1","v":"Lyngby-Taarbæk Vand A/S"}]
[]
[]
[null,"Fane 6. Korrektion af tillæg for planlagte investeringer"]
[]
[null,"Korrektion af tillæg for planlagte investeringer vedr. 2013"]
[null,"Tillæg for planlagte investeringer i 2013 i prisloft 2013",670003,"kr."]
[null,"Tillæg for planlagte investeringer i 2013 i prisloft 2014",945146.62666666717,"kr."]
[null,"Selskabets faktiske afskrivninger på gennemførte investeringer i 2013",{"$f":"'5. Gennemførte investeringer'!F78","v":691812.38000000059},"kr."]
[null,"Korrektion af tillæg for planlagte investeringer vedr. 2013",{"$f":"C9-C7+C9-C8","v":-231524.866666666},"kr."]

{"sheet":"7. Planlagte investeringer","index":6,"n_rows":61,"n_cols":7,"rows_kept":61,"cut":false,"hidden":false,"merged":[[6,5,6,6],[3,1,3,6]]}
[{"$f":"'6. Korrektion investeringer'!A1","v":"Lyngby-Taarbæk Vand A/S"}]
[]
[]
[null,"Fane 7. Planlagte investeringer "]
[]
[null,"Tillæg for planlagte investeringer i 2014 og 2015"]
[null,"Beskrivelse af investeringen   ","Årstal ","Std. levetid (år)   ","Anskaffelses-pris (kr.)   ","Afskrivning"]
[null,"SRO-brønd/kvarterbrønd/sektionsbrønd, Mek./EL",2014,15,4302263,{"$f":"E8/D8","v":286817.53333333333},"kr."]
[null,"Ledningsnet = Ø50 mm",2014,75,894054,{"$f":"E9/D9","v":11920.72},"kr."]
[null,"Stik på ledningsnet, Mek./EL",2014,75,75000,{"$f":"E10/D10","v":1000},"kr."]
[null,"Ø 250 mm < Ledningsnet = Ø 500mm",2014,75,2532521,33766.946666666663,"kr."]
[null,"Ø110 mm < Ledningsnet = Ø 250 mm",2014,75,2972255,39630.066666666666,"kr."]
[null,"Ø 250 mm < Ledningsnet = Ø 500mm",2014,75,2748600,36648,"kr."]
[null,"Ledningsnet = Ø50 mm",2014,75,726230,9683.0666666666675,"kr."]
[null,"Stik på ledningsnet, Konstruktioner",2014,75,703000,9373.3333333333339,"kr."]
[null,"Stik på ledningsnet, Mek./EL",2014,75,60000,800,"kr."]
[null,"Ø 250 mm < Ledningsnet = Ø 500mm",2014,75,606357,8084.76,"kr."]
[null,"Ø110 mm < Ledningsnet = Ø 250 mm",2014,75,3688496,49179.946666666663,"kr."]
[null,"Ledningsnet = Ø50 mm",2014,75,131053,1747.3733333333332,"kr."]
[null,"Stik på ledningsnet, Konstruktioner",2014,75,15000,200,"kr."]
[null,"Stik på ledningsnet, Mek./EL",2014,75,15000,200,"kr."]
[null,"Ø 250 mm < Ledningsnet = Ø 500mm",2014,75,17250,230,"kr."]
[null,"Ø110 mm < Ledningsnet = Ø 250 mm",2014,75,210402,2805.36,"kr."]
[null,"Køretøjer, entreprenørmaskiner",2014,5,50000,10000,"kr."]
[null,"Pumpestation (inkl. evt. hydrofor)/trykforøger, Mek./EL",2014,25,500000,20000,"kr."]
[null,"Ventiler på ledningsnet = Ø50 mm",2014,75,3609,48.12,"kr."]
[null,"Ventiler på Ø 50mm < Ledningsnet = Ø110 mm",2014,75,3609,48.12,"kr."]
[null,"Stik på ledningsnet, Konstruktioner",2014,75,1142300,15230.666666666666,"kr."]
[null,"Afregningsmålere, mekaniske",2014,8,2500000,312500,"kr."]
[null,"Ø 50mm < Ledningsnet = Ø110 mm",2014,75,3306823,44090.973333333335,"kr."]
[null,"Ø 50mm < Ledningsnet = Ø110 mm",2014,75,405000,5400,"kr."]
[null,"Ø 50mm < Ledningsnet = Ø110 mm",2014,75,3892109,51894.786666666667,"kr."]
[null,"Ø 50mm < Ledningsnet = Ø110 mm",2014,75,202500,2700,"kr."]
[null,"Ø 50mm < Ledningsnet = Ø110 mm",2014,75,111272,1483.6266666666668,"kr."]
[null,"Boring (inkl. etablering, forerør, filter og prøvepumpning)",2015,30,3029371,100979.03333333334,"kr."]
[null,"Køretøjer, entreprenørmaskiner",2015,5,279986,55997.2,"kr."]
[null,"Ledningsnet = Ø50 mm",2015,75,340000,4533.333333333333,"kr."]
[null,"Stik på ledningsnet, Konstruktioner",2015,75,866575,11554.333333333334,"kr."]
[null,"Stik på ledningsnet, Mek./EL",2015,75,75000,1000,"kr."]
[null,"Ø 50mm < Ledningsnet = Ø110 mm",2015,75,340000,4533.333333333333,"kr."]
[null,"Ø110 mm < Ledningsnet = Ø 250 mm",2015,75,4365275,58203.666666666664,"kr."]
[null,"Ø 250 mm < Ledningsnet = Ø 500mm",2015,75,640000,8533.3333333333339,"kr."]
[null,"Ledningsnet = Ø50 mm",2015,75,176000,2346.6666666666665,"kr."]
[null,"Stik på ledningsnet, Konstruktioner",2015,75,858125,11441.666666666666,"kr."]
[null,"Stik på ledningsnet, Mek./EL",2015,75,60000,800,"kr."]
[null,"Ø 250 mm < Ledningsnet = Ø 500mm",2015,75,115600,1541.3333333333333,"kr."]
[null,"Ø 50mm < Ledningsnet = Ø110 mm",2015,75,180000,2400,"kr."]
[null,"Ø110 mm < Ledningsnet = Ø 250 mm",2015,75,5232425,69765.666666666672,"kr."]
[null,"Ø 250 mm < Ledningsnet = Ø 500mm",2015,75,640000,8533.3333333333339,"kr."]
[null,"Ledningsnet = Ø50 mm",2015,75,75000,1000,"kr."]
[null,"Stik på ledningsnet, Konstruktioner",2015,75,15000,200,"kr."]
[null,"Stik på ledningsnet, Mek./EL",2015,75,15000,200,"kr."]
[null,"Ø 50mm < Ledningsnet = Ø110 mm",2015,75,75000,1000,"kr."]
[null,"Ø110 mm < Ledningsnet = Ø 250 mm",2015,75,75000,1000,"kr."]
[null,"Pumpestation (inkl. evt. hydrofor)/trykforøger, Mek./EL",2015,25,500000,20000,"kr."]
[null,"Instrumenter (flowmåler+tryk transducer+alarmer)",2015,10,1598036,159803.6,"kr."]
[null,"Råvandsstation komplet montering og boringshus/tørbrønd",2015,30,2355378,78512.600000000006,"kr."]
[null,"Afregningsmålere, mekaniske",2015,8,2500000,312500,"kr."]
[null,"Tillæg for 2014",null,null,null,{"$f":"SUMIF(C8:C58,\"2014\",F8:F58)","v":955483.39999999991},"kr."]
[null,"Tillæg for 2015",null,null,null,{"$f":"SUMIF(C8:C58,\"2015\",F8:F58)","v":916379.1},"kr."]
[null,"Tillæg i alt",null,null,null,{"$f":"F59+F60","v":1871862.5},"kr."]

{"sheet":"8. 1-1 omkostninger","index":7,"n_rows":27,"n_cols":4,"rows_kept":27,"cut":false,"hidden":false,"merged":[[3,1,3,3],[17,1,17,3],[23,1,23,3]]}
[{"$f":"'7. Planlagte investeringer'!A1","v":"Lyngby-Taarbæk Vand A/S"}]
[]
[]
[null,"Fane 8. 1:1 omkostninger"]
[]
[null,"Tillæg for budgetterede 1:1 omkostninger i 2015"]
[null,"Betaling til Forsyningssekretariatet",33000,"kr."]
[null,"Køb af varer og tjenesteydelser hos et andet prisloftreguleret vandselskab",9760000,"kr."]
[null,"Ejendomsskatter",620000,"kr."]
[null,"Tillæg i alt ",{"$f":"SUM(C7:C9)","v":10413000},"kr."]
[]
[]
[null,"Tillæg for afgift for ledningsført vand i 2015"]
[null,"Afgift for ledningsført vand (6,53 kr./m3)",18190686,"kr."]
[null,"Tillæg i alt ",{"$f":"SUM(C14:C14)","v":18190686},"kr."]
[]
[]
[null,"Tillæg for budgetterede nødvendige udgifter til revisorerklæringer samt ordinært medlemskab af DANVA og FVD i 2015"]
[null,"Betaling for ordinært medlemskab af DANVA/FVD",121000,"kr."]
[null,"Betaling for revisorerklæringer",18000,"kr."]
[null,"Tillæg i alt ",{"$f":"SUM(C19:C20)","v":139000},"kr."]
[]
[]
[null,"Korrektion af tillæg for faktiske 1:1 omkostninger (inkl. afgift for ledningsført vand, revisorerklæringer og ordinært medlemskab af DANVA/FVD) i 2013"]
[null,"Selskabets faktiske 1:1 omkostninger mv. i 2013, jf. reguleringsregnskabet",25558491,"kr."]
[null,"Tillæg for budgetterede 1:1 omkostninger mv. i prisloft 2013",23911753,"kr."]
[null,"Korrektion af tillæg for budgetterede 1:1 omkostninger mv. i 2013",{"$f":"C25-C26","v":1646738},"kr."]

{"sheet":"9. Miljø- og servicemål","index":8,"n_rows":17,"n_cols":4,"rows_kept":17,"cut":false,"hidden":false,"merged":[[3,1,3,3]]}
[{"$f":"'8. 1-1 omkostninger'!A1","v":"Lyngby-Taarbæk Vand A/S"}]
[]
[]
[null,"Fane 9. Driftsomkostninger til miljø- og servicemål "]
[]
[null,"Tillæg for budgetterede driftsomkostninger til miljø- og servicemål i 2015"]
[null,"Sikring af vandkvalitet via målerbrønde",100000,"kr."]
[null,"SMS-service",50000,"kr."]
[null,"Fjernaflæsning med elektroniske målere",400000,"kr."]
[null,"Tillæg i alt",{"$f":"SUM(C7:C9)","v":550000},"kr."]
[]
[]
[]
[null,"Korrektion af tillæg for faktiske driftsomkostninger til miljø- og servicemål i 2013"]
[null,"Selskabets faktiske driftsomkostninger til miljø- og servicemål i 2013, jf. reguleringsregnskabet",0,"kr."]
[null,"Tillæg for budgetterede driftsomkostninger til miljø- og servicemål i prisloft 2013",0,"kr."]
[null,"Korrektion af tillæg for budgetterede driftsomkostninger til miljø- og servicemål i 2013",{"$f":"C15-C16","v":0},"kr."]

{"sheet":"10. Nettofinansielle poster","index":9,"n_rows":16,"n_cols":4,"rows_kept":16,"cut":false,"hidden":false,"merged":[[3,1,3,3]]}
[{"$f":"'2. Samlet prisloft'!A1","v":"Lyngby-Taarbæk Vand A/S"}]
[]
[]
[null,"Fane 10. Nettofinansielle poster"]
[]
[null,"Tillæg for budgetterede nettofinansielle poster i 2015"]
[null,"Budgetterede renteudgifter og gebyrer i 2015",3402724,"kr."]
[null,"Budgetterede renteindtægter i 2015",5000,"kr."]
[null,"Tillæg/fradrag i alt",{"$f":"C7-C8","v":3397724},"kr."]
[]
[]
[]
[null,"Korrektion af tillæg for faktiske nettofinansielle poster i 2013"]
[null,"Selskabets faktiske nettofinansielle poster i 2013, jf. reguleringsregnskabet",2120334,"kr."]
[null,"Tillæg for budgetterede nettofinansielle poster i prisloft 2013",956457,"kr."]
[null,"Korrektion af tillæg for budgetterede nettofinansielle poster i 2013",{"$f":"C14-C15","v":1163877},"kr."]

{"sheet":"11. Over- eller underdækning","index":10,"n_rows":11,"n_cols":4,"rows_kept":11,"cut":false,"hidden":false,"merged":[[3,1,3,3]]}
[{"$f":"'1. Forside'!A1","v":"Lyngby-Taarbæk Vand A/S"}]
[]
[]
[null,"Fane 11. Over- eller underdækning til og med 2010"]
[]
[null,"Tillæg/fradrag for over- eller underdækning til og med 2010"]
[null,"Opgjort over- eller underdækning per 31. december 2010",-2302968,"kr."]
[null,"Heraf beløb indregnet i prislofterne for 2011 - 2014",-1173544.5079365079,"kr."]
[null,"Endnu ikke indregnet over- eller underdækning",{"$f":"C7-C8","v":-1129423.4920634921},"kr."]
[null,"Resterende indregningsperiode (fastsat i prisloftet for 2012)",6,"år"]
[null,"Tillæg/fradrag i alt",{"$f":"IF(C7=0,0,C9/C10)","v":-188237.24867724869},"kr."]

{"sheet":"12. Kontrol med indtægtsrammen","index":11,"n_rows":38,"n_cols":12,"rows_kept":38,"cut":false,"hidden":false,"merged":[[3,1,3,5],[30,1,30,4],[5,1,5,5]]}
[{"$f":"'11. Over- eller underdækning'!A1","v":"Lyngby-Taarbæk Vand A/S"}]
[]
[]
[null,"Fane 12. Korrektion for overholdelse af indtægtsrammen i prisloftet for 2013"]
[]
[null,"Samlet opgørelse vedrørende overholdelse af indtægtsrammen i prisloftet for 2013"]
[null,"Indtægtsramme i prisloftet for 2013",null,null,52654003.311614402,"kr."]
[null,"Ikke anvendt likviditet vedrørende investeringer i 2013"]
[null,"Tillæg for historiske investeringer ",6375157.6622753805,"kr."]
[null,"Tillæg for gennemførte investeringer i 2011",1075605,"kr."]
[null,"Korrektion af tillæg for planlagte investeringer i 2011",-374681,"kr."]
[null,"Tillæg for planlagte investeringer i 2012 og 2013",2054720,"kr."]
[null,"Indtægter fra tilslutningsbidrag",1216854,"kr."]
[null,"Indtægter fra salg af anlægsaktiver",39878,"kr."]
[null,"Erstatninger vedr. anlægsaktiver mv.",0,"kr."]
[null,"Ekstraordinær effektiviseringsgevinst anvendt til investeringer",4509486,"kr."]
[null,"Udgifter til investeringer",-14897020,"kr."]
[null,"Ikke anvendt likviditet vedr. investeringer i alt",{"$f":"SUM(C9:C17)","v":-0.33772461861371994},"kr.",{"$f":"IF(C18<0,0,-C18)","v":0},"kr."]
[null,"Ekstraordinære effektiviseringsgevinster anvendt til takstnedsættelse"]
[null,"Ekstraordinær effektiviseringsgevinst anvendt til takstnedsættelse",0,"kr.",{"$f":"-C20","v":0},"kr."]
[null,"Korrektion af ikke opkrævet tillæg fra 2011 i prisloft 2013"]
[null,"Korrektion af ikke opkrævet tillæg fra 2011 i prisloft 2013",0,"kr.",{"$f":"-C22","v":0},"kr."]
[null,"Indtægter fra primære aktiviteter mv."]
[null,"Indtægter fra kubikmetertakster, faste takster, særbidrag, målergebyrer samt andre takster og gebyrer",52811110,"kr."]
[null,"Andre indtægter i prisloftåret, som selskabet har opnået i forbindelse med eller som følge af selskabets primære aktiviteter",174180,"kr."]
[null,"Indtægter fra primære aktiviteter mv. i alt",{"$f":"SUM(C24:C25)","v":52985290},"kr.",{"$f":"-C26","v":-52985290},"kr."]
[null,"Tillæg/fradrag i prisloftet for 2015 i alt",null,null,{"$f":"E7+E18+E20+E22+E26","v":-331286.68838559836},"kr."]
[]
[]
[]
[null,"Oversigt over ekstraordinære effektiviseringsgevinster"]
[]
[null,null,2012,null,2013,null,2014,null,2015,null,2016]
[null,"Indhentet ekstraordinær effektiviseringsgevinst",4936853,"kr.",4475738,"kr.",null,"kr.",null,"kr.",null,"kr."]
[null,"Gevinst anvendt til investeringer",4903105,"kr.",4509486,"kr.",null,"kr.",null,"kr.",null,"kr."]
[null,"Gevinst anvendt til takstnedsættelse",0,"kr.",0,"kr.",null,"kr.",null,"kr.",null,"kr."]
[null,"Korrektion for  effektiviseringsgevinst der ikke er anvendt inden 4 år",0,"kr.",0,"kr.",null,"kr.",null,"kr.",{"$f":"IF(C38>SUM(C35:I36),C38-SUM(E35:I36),0)*-1","v":0},"kr."]
[null,"Resterende gevinst",{"$f":"C34-C35-C36","v":33748},"kr.",{"$f":"C38+E34-E35-E36","v":0},"kr.",{"$f":"E38+G34-G35-G36","v":0},"kr.",{"$f":"G38+I34-I35-I36","v":0},"kr.",{"$f":"K34-K35-K36+K37","v":0},"kr."]